bitfinex/quotes_BTCUSD_20220202
["timestamp","ask_amount","ask_price","bid_price","bid_amount"]
[1643813015486,0.13223932,37807.0,37798.0,0.39208753]
[1643813015688,0.24117104,37821.0,37800.0,0.39108753]
[1643813015888,0.26826971,37808.0,37799.0,0.44640405]
[1643813016090,0.24117104,37821.0,37799.0,0.39120108]
[1643813016287,0.24117104,37821.0,37800.0,0.44629426]
[1643813016486,0.24117104,37821.0,37801.0,0.09592381]
[1643813016690,0.42,37822.0,37802.0,0.066104]
[1643813016888,0.42,37822.0,37807.0,0.59154753]
[1643813016889,0.55218561,37822.0,37807.0,0.59154753]
[1643813017089,0.29163857,37819.0,37808.0,0.99321914]
[1643813017288,0.29163857,37819.0,37808.0,1.14321914]
[1643813017488,0.28324469,37815.0,37808.0,0.59663621]
[1643813017689,0.10110971,37816.0,37808.0,0.05]
[1643813017894,0.10110971,37816.0,37807.0,0.05]
[1643813018088,0.10110971,37816.0,37804.0,0.39156273]
[1643813018089,0.10110971,37816.0,37804.0,7.2e-05]
[1643813018334,0.10110971,37816.0,37803.0,0.0003858]
[1643813018736,0.10110971,37816.0,37804.0,0.066102]
[1643813018933,0.10110971,37816.0,37805.0,0.46910377]
[1643813018934,5.99991941,37809.0,37805.0,0.46910377]
[1643813019134,5.99991941,37809.0,37800.0,0.36710909]
[1643813019337,5.99991941,37809.0,37803.0,0.39165926]
[1643813019936,6.36756782,37809.0,37803.0,0.39165926]
[1643813020137,5.47033279,37809.0,37803.0,0.44165926]
[1643813020338,5.10268438,37809.0,37803.0,0.44154352]
[1643813020640,5.10268438,37809.0,37803.0,0.06068274]
[1643813020836,5.10268438,37809.0,37803.0,0.01068274]
[1643813021037,5.10268438,37809.0,37803.0,0.00011574]
[1643813021337,0.26127946,37807.0,37803.0,0.00011574]
[1643813021539,5.10268438,37809.0,37802.0,0.20046]
[1643813021737,5.10268438,37809.0,37803.0,0.00038501]
[1643813022189,5.10268438,37809.0,37803.0,0.06648401]
[1643813022585,5.10268438,37809.0,37803.0,0.11648401]
[1643813022786,5.10268438,37809.0,37803.0,0.116099]
[1643813023086,5.10268438,37809.0,37807.0,0.28534228]
[1643813023289,5.10268438,37809.0,37807.0,0.05]
[1643813023487,5.10268438,37809.0,37803.0,0.06648401]
[1643813023885,5.10268438,37809.0,37803.0,0.066099]
[1643813024287,5.10268438,37809.0,37803.0,0.3764151]
[1643813024486,5.10268438,37809.0,37803.0,0.076666]
[1643813024688,0.09447611,37804.0,37802.0,0.20052]
[1643813025288,0.31570209,37804.0,37802.0,0.20052]
[1643813025505,0.54926394,37804.0,37802.0,0.20052]
[1643813025732,0.54926394,37804.0,37802.0,0.05]
[1643813025733,0.22122598,37804.0,37802.0,0.05]
[1643813025935,5.10268438,37809.0,37801.0,0.00033865]
[1643813026332,5.10268438,37809.0,37800.0,0.39160735]
[1643813026532,5.10268438,37809.0,37803.0,0.00033863]
[1643813026731,5.19824335,37809.0,37803.0,0.00033863]
[1643813027132,0.28757453,37808.0,37803.0,0.00033863]
[1643813027332,0.28749348,37808.0,37803.0,0.00033863]
[1643813027534,5.19824335,37809.0,37799.0,0.39160735]
[1643813027733,5.19824335,37809.0,37803.0,0.00033863]
[1643813027934,0.23314987,37804.0,37803.0,0.00033863]
[1643813028133,0.25894334,37804.0,37803.0,0.00033863]
[1643813028734,0.25894334,37804.0,37802.0,0.010568]
[1643813029134,0.46185431,37804.0,37802.0,0.010568]
[1643813029586,0.4767774,37804.0,37802.0,0.010568]
[1643813029786,0.28070916,37803.0,37798.0,0.001]
[1643813029987,0.28070916,37803.0,37788.0,0.06613]
[1643813029988,1.22572497,37802.0,37788.0,0.06613]
[1643813030189,1.22572497,37802.0,37787.0,7.2e-05]
[1643813030190,0.05,37799.0,37787.0,7.2e-05]
[1643813030388,0.05,37799.0,37783.0,0.0031]
[1643813030389,0.26113155,37784.0,37783.0,0.001]
[1643813030584,0.26113155,37784.0,37782.0,0.0011]
[1643813030585,0.27276676,37783.0,37782.0,0.0011]
[1643813030783,0.515145,37783.0,37782.0,0.0011]
[1643813030984,0.24427319,37783.0,37782.0,0.0011]
[1643813031386,0.24427319,37783.0,37781.0,0.01]
[1643813031387,0.8,37781.0,37775.0,0.51681882]
[1643813031590,1.10228684,37780.0,37771.0,0.1046]
[1643813031784,0.79928,37780.0,37771.0,0.1046]
[1643813031983,0.79928,37780.0,37772.0,0.00603374]
[1643813032183,0.25036436,37773.0,37772.0,0.10762374]
[1643813032389,0.3806365,37779.0,37771.0,0.003]
[1643813032587,0.350474,37778.0,37771.0,0.003]
[1643813032785,0.350474,37778.0,37769.0,0.003172]
[1643813032786,0.6,37778.0,37769.0,0.001172]
[1643813032984,0.07762966,37779.0,37769.0,0.001172]
[1643813033236,0.07762966,37779.0,37769.0,0.0011]
[1643813033439,0.51772121,37770.0,37769.0,0.0011]
[1643813033638,0.25434469,37770.0,37769.0,0.0011]
[1643813033841,0.24639469,37770.0,37769.0,0.3011]
[1643813034036,0.8,37777.0,37769.0,0.0011]
[1643813034238,0.07762966,37779.0,37769.0,0.0011]
[1643813034436,0.09319998,37770.0,37769.0,0.0001]
[1643813035235,0.09319998,37770.0,37769.0,0.2501]
[1643813035436,0.39049068,37770.0,37769.0,0.0001]
[1643813035837,0.61380063,37770.0,37769.0,0.0001]
[1643813036036,0.39049068,37770.0,37769.0,0.0001]
[1643813037288,0.65360311,37770.0,37769.0,0.0001]
[1643813037690,0.65360311,37770.0,37766.0,0.011072]
[1643813037691,0.8,37769.0,37766.0,0.011072]
[1643813037887,0.95660995,37770.0,37766.0,0.011]
[1643813037888,0.39049068,37770.0,37766.0,0.011]
[1643813038092,0.0661832,37770.0,37766.0,0.011]
[1643813038888,0.24455236,37778.0,37766.0,0.011]
[1643813039093,0.24455236,37778.0,37766.0,0.011072]
[1643813039094,0.07972686,37773.0,37766.0,0.011072]
[1643813039289,0.0487,37772.0,37766.0,0.011072]
[1643813039489,0.29724337,37774.0,37766.0,0.011]
[1643813040091,0.29724337,37774.0,37765.0,2.520172]
[1643813040092,0.29724337,37774.0,37765.0,2.511172]
[1643813040293,0.005,37773.0,37766.0,0.010649]
[1643813040737,0.28500388,37780.0,37767.0,0.066165]
[1643813040738,0.005,37776.0,37767.0,0.066165]
[1643813040938,0.005,37779.0,37768.0,0.39620672]
[1643813041137,0.13231422,37787.0,37767.0,7.2e-05]
[1643813041138,0.31247134,37784.0,37767.0,7.2e-05]
[1643813041442,0.31247134,37784.0,37766.0,0.11320044]
[1643813041443,0.25345215,37782.0,37775.0,0.2419002]
[1643813041741,0.25345215,37782.0,37770.0,0.132307]
[1643813041742,0.06616136,37780.0,37770.0,0.132307]
[1643813041936,0.005,37779.0,37770.0,0.132307]
[1643813042336,0.00064198,37777.0,37770.0,0.132307]
[1643813042539,0.00064198,37777.0,37774.0,0.2371806]
[1643813042941,0.888486,37805.0,37778.0,0.15253]
[1643813043142,0.7562,37805.0,37779.0,0.35617134]
[1643813043439,0.75586435,37805.0,37781.0,0.15847217]
[1643813043640,0.75586435,37805.0,37786.0,0.132253]
[1643813043641,0.36170899,37792.0,37786.0,0.132253]
[1643813043838,0.27939795,37796.0,37786.0,0.132253]
[1643813044038,0.5766,37813.0,37786.0,0.182053]
[1643813044243,0.05,37796.0,37780.0,0.010572]
[1643813044504,0.05,37796.0,37779.0,7.2e-05]
[1643813044505,0.05,37793.0,37779.0,7.2e-05]
[1643813044701,0.05,37786.0,37765.0,1.98560324]
[1643813044897,0.30747134,37785.0,37766.0,7.2e-05]
[1643813045100,0.86848249,37766.0,37765.0,1.23527896]
[1643813045298,1.16718249,37766.0,37765.0,1.23427896]
[1643813045499,1.16718249,37766.0,37763.0,0.0031]
[1643813045500,0.8,37765.0,37762.0,7.2e-05]
[1643813045701,0.8,37763.0,37753.0,0.10666]
[1643813045898,0.30747134,37762.0,37759.0,7.2e-05]
[1643813046101,0.7433,37775.0,37758.0,0.00049457]
[1643813046298,0.7433,37775.0,37759.0,0.7998]
[1643813046299,0.5487,37774.0,37759.0,0.7998]
[1643813046498,0.30747134,37773.0,37759.0,0.101722]
[1643813046803,0.98,37781.0,37761.0,0.30228]
[1643813046804,0.0487,37778.0,37761.0,0.30228]
[1643813046997,0.36885955,37769.0,37763.0,0.29691629]
[1643813047197,0.24136009,37771.0,37764.0,0.00021208]
[1643813047599,0.0487,37778.0,37764.0,0.00021208]
[1643813047803,0.00064182,37779.0,37764.0,1.208e-05]
[1643813048246,0.00064182,37779.0,37761.0,0.00679799]
[1643813048247,0.13499254,37780.0,37762.0,0.00789083]
[1643813048451,0.28257621,37775.0,37763.0,0.23729095]
[1643813048647,0.35617134,37774.0,37763.0,0.23729095]
[1643813048845,0.10924409,37774.0,37763.0,0.23729095]
[1643813049046,0.06617719,37772.0,37763.0,0.23229095]
[1643813049246,0.06617719,37772.0,37770.0,0.09914496]
[1643813049451,0.06617719,37772.0,37764.0,7.2e-05]
[1643813049452,0.06117719,37772.0,37764.0,7.2e-05]
[1643813049649,0.30747134,37780.0,37765.0,0.8]
[1643813049854,0.30747134,37784.0,37766.0,0.0487]
[1643813050047,1.547,37793.0,37783.0,0.25365268]
[1643813050249,0.06615156,37786.0,37783.0,0.25365268]
[1643813050450,0.30747134,37792.0,37784.0,0.08191877]
[1643813050451,0.195,37785.0,37784.0,0.08191877]
[1643813050649,0.066134,37803.0,37785.0,0.8]
[1643813050850,0.005,37799.0,37785.0,1.20617134]
[1643813051046,1.0166,37805.0,37785.0,0.95105587]
[1643813051349,0.005,37799.0,37796.0,0.31154192]
[1643813051746,0.005,37799.0,37786.0,0.31278941]
[1643813051999,0.21824083,37800.0,37788.0,0.132038]
[1643813052000,0.005,37797.0,37788.0,0.132038]
[1643813052191,0.005,37797.0,37785.0,0.010571]
[1643813052388,0.005,37797.0,37786.0,7.2e-05]
[1643813052589,0.005,37797.0,37785.0,0.010443]
[1643813052590,0.805,37797.0,37785.0,0.010443]
[1643813052790,0.40617263,37796.0,37793.0,0.38941373]
[1643813053088,0.005,37799.0,37793.0,0.38921373]
[1643813053289,0.005,37799.0,37785.0,0.010315]
[1643813053490,0.005,37805.0,37786.0,0.4]
[1643813053799,0.48,37807.0,37802.0,0.045]
[1643813053990,0.11234505,37808.0,37795.0,0.132003]
[1643813054189,0.33489868,37807.0,37801.0,0.08284764]
[1643813054388,0.11234505,37808.0,37801.0,0.08244764]
[1643813054389,0.0748967,37808.0,37801.0,0.08244764]
[1643813054593,0.0748967,37808.0,37803.0,0.23840874]
[1643813054789,0.0748967,37808.0,37803.0,0.28820874]
[1643813054987,0.07481623,37808.0,37803.0,0.28780874]
[1643813055190,0.005,37805.0,37802.0,0.0661]
[1643813055394,0.005,37801.0,37792.0,0.198105]
[1643813055593,0.07981623,37808.0,37792.0,0.198105]
[1643813055850,0.07981623,37808.0,37802.0,0.010571]
[1643813056050,0.07481623,37808.0,37793.0,0.3044726]
[1643813056253,0.07481623,37808.0,37792.0,0.197905]
[1643813056254,0.7745874,37807.0,37806.0,0.39946813]
[1643813056449,0.3245874,37807.0,37806.0,0.39946813]
[1643813056648,0.3245874,37807.0,37797.0,0.132223]
[1643813056852,0.3046726,37806.0,37797.0,0.132223]
[1643813057049,0.26892374,37800.0,37797.0,0.132223]
[1643813057255,0.26892374,37800.0,37797.0,0.182223]
[1643813057549,0.3245874,37807.0,37799.0,0.36434627]
[1643813057949,0.62926,37807.0,37799.0,0.06611]
[1643813058152,0.00063804,37805.0,37799.0,0.06611]
[1643813075797,0.00063804,37805.0,37800.0,0.40144273]
[1643813076005,0.00063804,37805.0,37800.0,0.066113]
[1643813077014,0.00012757,37805.0,37804.0,0.716093]
[1643813077619,0.00012757,37805.0,37804.0,0.76853356]
[1643813077912,0.00012757,37805.0,37804.0,0.866093]
[1643813078314,5.614e-05,37805.0,37804.0,1.24642273]
[1643813078726,0.3245874,37807.0,37804.0,1.24642273]
[1643813078727,0.00063751,37806.0,37805.0,0.8]
[1643813078912,0.00063751,37806.0,37805.0,1.15348247]
[1643813079113,0.00063751,37806.0,37805.0,0.8]
[1643813079313,0.00063751,37806.0,37805.0,0.80755115]
[1643813079613,0.3245874,37807.0,37805.0,0.80755115]
[1643813084400,0.3245874,37807.0,37806.0,0.20467638]
[1643813084401,0.3245874,37807.0,37806.0,0.20585409]
[1643813084601,0.3245874,37807.0,37806.0,0.20398062]
[1643813085001,0.3245874,37807.0,37806.0,0.198257]
[1643813085279,0.3245874,37807.0,37806.0,0.198257]
[1643813085990,0.3245874,37807.0,37806.0,0.50870178]
[1643813093275,0.3245874,37807.0,37805.0,0.20046]
[1643813093469,0.3245874,37807.0,37799.0,0.001]
[1643813093876,0.00884031,37801.0,37799.0,0.001]
[1643813094071,1.46645599,37800.0,37799.0,0.001]
[1643813094270,1.81692699,37800.0,37799.0,0.001]
[1643813094672,0.73258551,37800.0,37799.0,0.001]
[1643813094870,0.36061442,37800.0,37799.0,0.001]
[1643813095070,0.2944849,37800.0,37799.0,0.001]
[1643813095669,0.0445,37800.0,37799.0,0.001]
[1643813096071,0.066121,37812.0,37800.0,0.6]
[1643813096274,0.19836492,37815.0,37801.0,0.29877872]
[1643813096513,0.7288,37822.0,37801.0,0.29877872]
[1643813096514,0.25805875,37808.0,37801.0,0.05]
[1643813096908,0.25805875,37808.0,37800.0,0.99018228]
[1643813097109,0.34264694,37816.0,37800.0,0.99018228]
[1643813097309,0.06609947,37816.0,37801.0,0.30934772]
[1643813097511,0.19828966,37821.0,37801.0,0.31506623]
[1643813097710,0.19828966,37821.0,37801.0,0.30576718]
[1643813097908,0.00884031,37818.0,37803.0,0.20058]
[1643813098111,0.19828966,37821.0,37806.0,0.23015938]
[1643813098112,0.24986085,37813.0,37806.0,0.23015938]
[1643813098313,0.19828966,37821.0,37816.0,0.09786008]
[1643813098314,0.0660938,37819.0,37816.0,0.09786008]
[1643813098510,0.0660938,37819.0,37806.0,0.28015938]
[1643813098511,0.32420841,37818.0,37806.0,0.28015938]
[1643813098914,3.01014999,37824.0,37809.0,0.04115969]
[1643813099217,0.25873388,37815.0,37807.0,0.3]
[1643813099512,0.32483257,37815.0,37807.0,0.3]
[1643813099713,0.25873388,37815.0,37807.0,0.3]
[1643813100110,0.25873388,37815.0,37799.0,0.0023]
[1643813100340,0.25873388,37815.0,37801.0,0.066104]
[1643813100544,0.24325297,37809.0,37801.0,0.30842878]
[1643813101039,0.27142841,37807.0,37801.0,0.066104]
[1643813101241,0.29414277,37808.0,37801.0,0.066104]
[1643813101242,0.0445,37806.0,37801.0,0.066104]
[1643813101440,0.0445,37810.0,37801.0,0.066104]
[1643813101642,0.0445,37810.0,37801.0,0.366104]
[1643813101944,0.05334031,37810.0,37805.0,0.00161895]
[1643813102140,0.11060908,37810.0,37806.0,0.066109]
[1643813102341,0.35053414,37808.0,37805.0,0.00161895]
[1643813102940,0.28197885,37809.0,37805.0,0.00161895]
[1643813103542,0.05334031,37808.0,37805.0,0.00161895]
[1643813103743,0.29773246,37807.0,37805.0,0.00161895]
[1643813104015,0.8395,37806.0,37805.0,0.00161895]
[1643813104214,0.8345,37806.0,37805.0,0.00161895]
[1643813104622,0.0445,37806.0,37805.0,0.00161895]
[1643813105314,0.0445,37806.0,37802.0,0.066115]
[1643813105715,0.2763663,37802.0,37799.0,0.2296272]
[1643813105915,0.27827033,37805.0,37799.0,0.2296272]
[1643813106114,0.00884031,37802.0,37799.0,0.2296272]
[1643813106313,0.00839262,37802.0,37799.0,0.132227]
[1643813106718,0.33867226,37804.0,37797.0,0.00022741]
[1643813106719,0.0445,37801.0,37797.0,0.00022741]
[1643813106916,0.32943258,37800.0,37797.0,0.00022741]
[1643813107118,0.0445,37799.0,37797.0,0.00022741]
[1643813107320,1.03473403,37798.0,37797.0,0.00022741]
[1643813107518,1.32067522,37798.0,37797.0,0.00022741]
[1643813107746,1.72114622,37798.0,37797.0,0.00022741]
[1643813107948,1.67114622,37798.0,37797.0,0.00022741]
[1643813108148,1.32067522,37798.0,37797.0,0.00022741]
[1643813108349,1.03044119,37798.0,37797.0,0.00022741]
[1643813109154,0.33044119,37798.0,37797.0,0.00022741]
[1643813109451,0.68044119,37798.0,37797.0,0.00022741]
[1643813110348,0.68044119,37798.0,37790.0,0.066137]
[1643813110349,1.08044119,37798.0,37790.0,0.066137]
[1643813110549,1.00822853,37798.0,37791.0,0.07712333]
[1643813110749,0.33044119,37798.0,37797.0,0.00029064]
[1643813110952,0.0445,37798.0,37797.0,0.00029064]
[1643813112397,0.3445,37798.0,37797.0,0.00029064]
[1643813113292,0.8,37798.0,37797.0,0.00029064]
[1643813113498,1.49809328,37798.0,37797.0,0.00029064]
[1643813113696,1.54809328,37798.0,37797.0,0.00029064]
[1643813113896,0.8,37797.0,37789.0,0.472]
[1643813114195,0.23972316,37790.0,37789.0,0.472]
[1643813114394,0.28842316,37790.0,37789.0,0.472]
[1643813114997,0.0487,37790.0,37789.0,0.472]
[1643813115874,0.0487,37790.0,37789.0,0.56334826]
[1643813116475,0.0487,37790.0,37789.0,0.57392126]
[1643813116876,0.0487,37790.0,37789.0,0.56334826]
[1643813117075,0.0487,37790.0,37789.0,0.62948526]
[1643813118476,0.0487,37790.0,37789.0,0.48342934]
[1643813118675,0.04675967,37790.0,37789.0,0.41112234]
[1643813118875,0.04675967,37790.0,37789.0,0.40213218]
[1643813120311,0.34675967,37790.0,37789.0,0.40213218]
[1643813120606,0.34675967,37790.0,37786.0,0.010576]
[1643813120607,0.8,37788.0,37786.0,0.010576]
[1643813120807,0.8,37788.0,37785.0,0.00359306]
[1643813120808,0.71251531,37787.0,37785.0,0.00359306]
[1643813121006,1.13853587,37786.0,37785.0,0.00359306]
[1643813121205,0.0487,37786.0,37785.0,0.00359306]
[1643813122206,0.3987,37786.0,37785.0,0.00359306]
[1643813122407,0.0487,37786.0,37785.0,0.00359306]
[1643813122604,0.0987,37786.0,37785.0,0.00359306]
[1643813122853,0.0487,37786.0,37785.0,0.00359306]
[1643813123639,0.03749192,37786.0,37785.0,0.00359306]
[1643813124241,0.43749192,37786.0,37785.0,0.00359306]
[1643813124943,0.72958597,37786.0,37785.0,0.00359306]
[1643813125139,0.43749192,37786.0,37785.0,0.00359306]
[1643813125544,0.03749192,37786.0,37785.0,0.00359306]
[1643813126993,0.03749192,37786.0,37783.0,0.13088206]
[1643813128195,0.06615812,37788.0,37785.0,0.616144]
[1643813128390,0.47,37793.0,37785.0,0.616144]
[1643813128591,0.242,37797.0,37790.0,0.132259]
[1643813128789,0.81640008,37806.0,37790.0,0.132259]
[1643813128993,0.2892193,37797.0,37790.0,0.23202325]
[1643813129196,0.066128,37805.0,37800.0,0.28496757]
[1643813129394,0.41659981,37804.0,37800.0,0.28496757]
[1643813129592,0.06612881,37804.0,37798.0,0.132238]
[1643813129791,0.132239,37813.0,37798.0,0.132238]
[1643813129792,0.52894722,37811.0,37798.0,0.132238]
[1643813129990,0.7724,37812.0,37798.0,0.132238]
[1643813130263,0.33255365,37805.0,37799.0,0.10317285]
[1643813130464,0.33255365,37805.0,37798.0,0.132238]
[1643813130663,0.66356984,37804.0,37799.0,0.066124]
[1643813130868,0.66356984,37804.0,37785.0,0.20016]
[1643813130869,0.64951782,37803.0,37785.0,0.20016]
[1643813131069,0.27264764,37786.0,37785.0,0.15016]
[1643813131463,0.0487,37789.0,37782.0,0.013749]
[1643813131663,0.0487,37788.0,37784.0,0.010577]
[1643813131864,0.0487,37787.0,37784.0,0.010577]
[1643813132064,0.0487,37786.0,37782.0,0.013677]
[1643813132264,0.29904682,37799.0,37782.0,0.013677]
[1643813132265,0.0487,37787.0,37782.0,0.013677]
[1643813132464,0.0487,37789.0,37782.0,0.013677]
[1643813132865,0.0487,37789.0,37783.0,0.06615]
[1643813133265,0.0487,37789.0,37783.0,0.02615]
[1643813133662,0.0487,37789.0,37783.0,0.32996496]
[1643813134298,0.0487,37789.0,37786.0,0.066145]
[1643813134697,0.0487,37789.0,37784.0,0.132355]
[1643813134899,0.0487,37789.0,37784.0,7.2e-05]
[1643813134900,0.42142166,37789.0,37784.0,7.2e-05]
[1643813135100,0.0987,37789.0,37783.0,7.2e-05]
[1643813135702,0.0987,37789.0,37782.0,0.024252]
[1643813135901,0.0987,37789.0,37782.0,0.0031]
[1643813136107,0.0487,37789.0,37782.0,0.0031]
[1643813136304,0.13230249,37790.0,37782.0,0.103172]
[1643813136505,0.06615249,37790.0,37783.0,0.04660738]
[1643813136703,0.06612683,37793.0,37782.0,0.153172]
[1643813137104,0.24002557,37792.0,37791.0,0.066126]
[1643813137304,0.06612683,37793.0,37791.0,0.066126]
[1643813138247,0.06612683,37793.0,37791.0,0.366126]
[1643813138448,0.13225521,37796.0,37791.0,0.366126]
[1643813138650,0.13225521,37796.0,37794.0,0.066125]
[1643813138847,0.13202088,37796.0,37794.0,0.066125]
[1643813139250,0.066123,37797.0,37794.0,0.066125]
[1643813139449,5.0,37800.0,37793.0,0.35297693]
[1643813139450,5.0,37800.0,37793.0,0.36355093]
[1643813139651,5.0,37800.0,37799.0,0.866113]
[1643813139855,3.68029547,37800.0,37799.0,0.966113]
[1643813140149,3.47879547,37800.0,37799.0,1.19861518]
[1643813140349,3.08225647,37800.0,37799.0,1.28508794]
[1643813140553,0.94117288,37800.0,37799.0,1.33508794]
[1643813140751,0.06608783,37815.0,37804.0,0.04660738]
[1643813140953,0.06608783,37815.0,37806.0,0.066085]
[1643813141254,0.06608783,37815.0,37805.0,0.1]
[1643813141510,0.06608783,37815.0,37809.0,0.27729529]
[1643813141708,0.06151708,37817.0,37809.0,0.27729529]
[1643813141908,0.06151708,37817.0,37810.0,0.33942433]
[1643813142107,0.06151708,37817.0,37811.0,0.04660738]
[1643813142108,0.00043008,37817.0,37811.0,0.04660738]
[1643813142309,0.00043008,37817.0,37812.0,0.066073]
[1643813142706,0.00043008,37817.0,37812.0,0.266773]
[1643813142907,0.00043008,37817.0,37813.0,0.08852658]
[1643813143309,0.066086,37816.0,37813.0,0.08852658]
[1643813143708,0.00043008,37817.0,37813.0,0.18852658]
[1643813144706,0.00019302,37817.0,37813.0,0.23852658]
[1643813144908,0.00011183,37817.0,37813.0,0.23852658]
[1643813145347,0.00011183,37817.0,37814.0,0.25681696]
[1643813145647,0.49267681,37828.0,37816.0,0.49660738]
[1643813145849,0.01,37829.0,37817.0,0.10517352]
[1643813146046,0.01,37829.0,37819.0,0.04660738]
[1643813146248,0.01,37829.0,37818.0,0.05]
[1643813146249,0.4256,37836.0,37824.0,0.20028]
[1643813146453,0.132103,37839.0,37834.0,0.09885891]
[1643813146648,0.066052,37836.0,37834.0,0.09885891]
[1643813146847,0.066052,37836.0,37834.0,0.16490491]
[1643813147449,0.11875284,37847.0,37834.0,0.16490491]
[1643813147648,0.09152849,37846.0,37840.0,0.09296806]
[1643813147852,0.7676,37849.0,37840.0,0.15900706]
[1643813148048,0.7676,37849.0,37840.0,0.40410117]
[1643813148049,0.10014,37848.0,37840.0,0.40410117]
[1643813148252,0.10014,37848.0,37841.0,0.1]
[1643813148253,0.09014,37848.0,37841.0,0.1]
[1643813148749,0.15865169,37848.0,37840.0,0.35946706]
[1643813149000,0.066039,37844.0,37840.0,0.066039]
[1643813149397,0.0660288,37856.0,37840.0,0.066039]
[1643813149696,3.4552288,37856.0,37844.0,0.29476175]
[1643813149895,3.3892,37856.0,37844.0,0.36078575]
[1643813150097,3.3892,37856.0,37850.0,0.09105674]
[1643813150098,0.066023,37854.0,37850.0,0.09105674]
[1643813150298,0.34502094,37853.0,37846.0,0.20052]
[1643813150499,0.06603243,37852.0,37846.0,0.20052]
[1643813150701,0.132058,37850.0,37849.0,0.00797671]
[1643813150898,0.282268,37850.0,37849.0,0.066029]
[1643813151099,0.282268,37850.0,37846.0,0.20618351]
[1643813151298,0.182268,37850.0,37846.0,0.20052]
[1643813151508,0.15021,37850.0,37846.0,0.20052]
[1643813152097,0.15021,37850.0,37847.0,0.132055]
[1643813152098,0.066026,37849.0,37847.0,0.132055]
[1643813152301,0.4,37847.0,37844.0,0.3]
[1643813152506,0.31451762,37846.0,37840.0,0.198083]
[1643813152763,0.31451762,37846.0,37824.0,0.26412969]
[1643813152764,0.35387024,37829.0,37824.0,0.3]
[1643813152965,0.05,37837.0,37825.0,0.5]
[1643813152966,0.0487,37830.0,37825.0,0.5]
[1643813153160,0.066058,37831.0,37824.0,0.06605916]
[1643813153361,0.04861862,37829.0,37825.0,0.09823662]
[1643813153566,0.066065,37828.0,37825.0,0.09823662]
[1643813153760,0.066065,37828.0,37823.0,0.132111]
[1643813154165,0.13213,37828.0,37824.0,0.066056]
[1643813154363,0.04146689,37828.0,37824.0,0.13211869]
[1643813154964,0.04146689,37828.0,37826.0,0.20004]
[1643813155564,0.04146689,37828.0,37824.0,0.43211869]
[1643813155565,0.10753189,37828.0,37824.0,0.366056]
[1643813156266,0.10729367,37828.0,37824.0,0.366056]
[1643813156496,0.03646689,37828.0,37825.0,0.09319171]
[1643813156704,0.066054,37832.0,37825.0,0.09319171]
[1643813156901,0.066054,37832.0,37825.0,0.40072475]
[1643813157100,0.23157828,37836.0,37825.0,0.24319171]
[1643813157498,0.23282997,37835.0,37831.0,0.07478962]
[1643813157697,0.23282997,37835.0,37825.0,0.45753304]
[1643813157698,0.066053,37833.0,37825.0,0.45753304]
[1643813157897,0.066053,37833.0,37829.0,0.20094]
[1643813158701,0.066053,37833.0,37830.0,0.09624041]
[1643813158901,0.066046,37837.0,37830.0,0.33495741]
[1643813159101,0.03962261,37837.0,37830.0,0.33495741]
[1643813159306,0.03962261,37837.0,37830.0,0.09624041]
[1643813159502,0.198188,37839.0,37830.0,0.09624041]
[1643813159699,0.198188,37839.0,37830.0,0.24624041]
[1643813159901,0.066051,37833.0,37829.0,0.399081]
[1643813160105,0.066051,37833.0,37829.0,0.20094]
[1643813160106,0.3549628,37832.0,37829.0,0.20094]
[1643813160351,0.0487,37832.0,37828.0,0.066053]
[1643813160549,0.066062,37830.0,37828.0,0.066053]
[1643813160749,0.066062,37830.0,37828.0,0.15223765]
[1643813161149,0.066062,37830.0,37828.0,0.35287765]
[1643813161358,0.066062,37830.0,37828.0,0.15223765]
[1643813161551,0.19835118,37833.0,37828.0,0.15223765]
[1643813161755,0.06622318,37833.0,37828.0,0.15223765]
[1643813162155,0.066051,37833.0,37828.0,0.20944998]
[1643813162353,0.066051,37833.0,37829.0,0.00565992]
[1643813162558,0.066051,37833.0,37828.0,0.30223765]
[1643813162755,0.066051,37833.0,37831.0,0.06605149]
[1643813163056,0.066053,37834.0,37831.0,0.06605149]
[1643813163057,0.066053,37834.0,37831.0,0.00774692]
[1643813163255,0.132126,37835.0,37832.0,0.00718995]
[1643813163456,0.180826,37835.0,37833.0,0.00618153]
[1643813163665,0.180826,37835.0,37828.0,0.07256849]
[1643813163856,0.180826,37835.0,37831.0,0.00502372]
[1643813164131,0.066059,37833.0,37831.0,0.00570551]
[1643813164431,0.23062669,37832.0,37827.0,0.132124]
[1643813164636,0.23062669,37832.0,37827.0,0.13826923]
[1643813164637,0.20589416,37831.0,37827.0,0.13826923]
[1643813164834,0.05,37830.0,37810.0,0.264271]
[1643813165038,0.05,37828.0,37815.0,0.00658709]
[1643813165230,0.132173,37817.0,37816.0,0.00743798]
[1643813165430,0.132173,37817.0,37812.0,0.06608691]
[1643813165431,0.180873,37817.0,37812.0,0.06608691]
[1643813165631,0.180873,37817.0,37813.0,0.0081288]
[1643813165830,0.180873,37817.0,37814.0,0.00508769]
[1643813166030,0.180873,37817.0,37815.0,0.00715369]
[1643813166230,0.180873,37817.0,37816.0,0.00614461]
[1643813166231,0.27164723,37817.0,37816.0,0.00614461]
[1643813166431,0.27164723,37817.0,37815.0,0.066083]
[1643813166432,0.180873,37817.0,37815.0,0.066083]
[1643813166632,0.180873,37817.0,37815.0,0.07225725]
[1643813166833,0.180873,37817.0,37816.0,0.00644773]
[1643813167031,0.180873,37817.0,37815.0,0.066083]
[1643813167237,0.180873,37817.0,37813.0,0.00937351]
[1643813167238,1.30532259,37816.0,37813.0,0.00937351]
[1643813167432,0.0487,37815.0,37813.0,0.10465]
[1643813167635,0.14619052,37815.0,37813.0,0.10465]
[1643813167853,0.19619052,37815.0,37813.0,0.10465]
[1643813168447,0.19619052,37815.0,37800.0,0.23079266]
[1643813168448,0.066109,37806.0,37800.0,0.23079266]
[1643813168649,1.42175567,37815.0,37801.0,0.26124]
[1643813168650,0.05,37802.0,37801.0,0.26124]
[1643813168848,0.33525726,37795.0,37793.0,0.00621336]
[1643813169047,0.33525726,37795.0,37793.0,0.00521769]
[1643813169048,0.0487,37794.0,37793.0,0.00521769]
[1643813169249,0.0487,37794.0,37789.0,0.001]
[1643813169445,0.61184414,37794.0,37793.0,0.00523554]
[1643813169645,0.61184414,37794.0,37792.0,0.00642919]
[1643813169851,0.71243509,37794.0,37793.0,0.00619487]